fUST/lending_fUST_20260612
["ID","MTS","AMOUNT","RATE_DAILY","PERIOD"]
[424906926,1781263838000,-3907.445579,0.0002557,2]
[424906923,1781263838000,-3000.0,0.0002556,2]
[424906924,1781263838000,-500.0,0.00025569,2]
[424906921,1781263838000,-417.15472785,0.00025541,2]
[424906928,1781263838000,-209.749,0.00025697,11]
[424906938,1781263838000,-500.0,0.00025792,2]
[424906927,1781263838000,-153.7023335,0.00025693,2]
[424906929,1781263838000,-500.0,0.00025792,2]
[424906930,1781263838000,-500.0,0.00025792,2]
[424906931,1781263838000,-500.0,0.00025792,2]
[424906936,1781263838000,-500.0,0.00025792,2]
[424906935,1781263838000,-500.0,0.00025792,2]
[424906965,1781263838000,-740.69119138,0.00025979,2]
[424906961,1781263838000,-500.0,0.00025792,2]
[424906957,1781263838000,-500.0,0.00025792,2]
[424906978,1781263838000,-289.63868817,0.00025997,2]
[424906977,1781263838000,-631.37510966,0.00025997,2]
[424906976,1781263838000,-631.37510966,0.00025997,2]
[424906980,1781263838000,-631.37510966,0.00025997,2]
[424906990,1781263838000,-631.37510966,0.00025997,2]
[424906979,1781263838000,-341.73642149,0.00025997,2]
[424906982,1781263838000,-631.37510966,0.00025997,2]
[424906983,1781263838000,-631.37510966,0.00025997,2]
[424906981,1781263838000,-631.37510966,0.00025997,2]
[424906984,1781263838000,-631.37510966,0.00025997,2]
[424906987,1781263838000,-631.37510966,0.00025997,2]
[424906988,1781263838000,-631.37510966,0.00025997,2]
[424906985,1781263838000,-631.37510966,0.00025997,2]
[424906986,1781263838000,-631.37510966,0.00025997,2]
[424906989,1781263838000,-631.37510966,0.00025997,2]
[424906953,1781263838000,-500.0,0.00025792,2]
[424906975,1781263838000,-631.37510966,0.00025997,2]
[424906967,1781263838000,-631.37510966,0.00025997,2]
[424906970,1781263838000,-26.44419797,0.00025997,2]
[424906964,1781263838000,-172.10419606,0.00025979,2]
[424906955,1781263838000,-500.0,0.00025792,2]
[424906956,1781263838000,-500.0,0.00025792,2]
[424906960,1781263838000,-500.0,0.00025792,2]
[424906958,1781263838000,-500.0,0.00025792,2]
[424906971,1781263838000,-604.93091169,0.00025997,2]
[424906959,1781263838000,-500.0,0.00025792,2]
[424906963,1781263838000,-473.59592226,0.00025907,7]
[424906991,1781263838000,-631.37510966,0.00025997,2]
[424906969,1781263838000,-631.37510966,0.00025997,2]
[424906968,1781263838000,-631.37510966,0.00025997,2]
[424906966,1781263838000,-260.08331683,0.00025997,2]
[424906974,1781263838000,-631.37510966,0.00025997,2]
[424906973,1781263838000,-631.37510966,0.00025997,2]
[424906972,1781263838000,-631.37510966,0.00025997,2]
[424906962,1781263838000,-2442.46732676,0.000258,2]
[424906992,1781263839000,-631.37510966,0.00025997,2]
[424906993,1781263839000,-631.37510966,0.00025997,2]
[424907000,1781263839000,-380.16173233,0.00025998,2]
[424906999,1781263839000,-21607.36483314,0.00025998,2]
[424906997,1781263839000,-631.37510965,0.00025997,2]
[424906998,1781263839000,-353.84960746,0.00025997,2]
[424906996,1781263839000,-631.37510965,0.00025997,2]
[424906995,1781263839000,-631.37510965,0.00025997,2]
[424906994,1781263839000,-631.37510966,0.00025997,2]
[424907031,1781263840000,-20415.94301906,0.00025998,2]
[424907024,1781263840000,-1459.00470786,0.00025998,2]
[424907335,1781263843000,-112057.11095856,0.00025998,2]
[424907337,1781263843000,-4913.35858039,0.00025998,2]
[424907336,1781263843000,-1723.22244478,0.00025998,2]
[424907385,1781263846000,-107778.11652751,0.00025998,2]
[424907384,1781263846000,-15303.59238438,0.00025998,2]
[424907559,1781265040000,-1823.33702384,0.00017357,9]
[424907590,1781265043000,-300.0,0.00018616,2]
[424907589,1781265043000,-300.0,0.00018616,2]
[424907591,1781265043000,-300.0,0.00018616,2]
[424907594,1781265043000,-300.0,0.00018616,2]
[424907599,1781265043000,-176.34,0.00021436,2]
[424907593,1781265043000,-300.0,0.00018616,2]
[424907598,1781265043000,-176.34,0.00021336,2]
[424907600,1781265043000,-176.37818054,0.00021536,2]
[424907592,1781265043000,-300.0,0.00018616,2]
[424907595,1781265043000,-300.0,0.00018616,2]
[424907588,1781265043000,-300.0,0.00018616,2]
[424907586,1781265043000,-300.0,0.00018616,2]
[424907585,1781265043000,-300.0,0.00018616,2]
[424907583,1781265043000,-300.0,0.00018616,2]
[424907584,1781265043000,-300.0,0.00018616,2]
[424907582,1781265043000,-300.0,0.00018616,2]
[424907581,1781265043000,-300.0,0.00018616,2]
[424907580,1781265043000,-151.0,0.00018437,2]
[424907577,1781265043000,-1617.66297616,0.00017357,9]
[424907579,1781265043000,-5000.0,0.00017709,9]
[424907578,1781265043000,-454.29549805,0.00017532,9]
[424907574,1781265043000,-1559.0,0.00017357,9]
[424907596,1781265043000,-187.93249574,0.00019589,7]
[424907587,1781265043000,-300.0,0.00018616,2]
[424907597,1781265043000,-176.34,0.00021236,2]
[424907612,1781265043000,-172.07666448,0.00025797,2]
[424907602,1781265043000,-17380.1775177,0.00022844,2]
[424907601,1781265043000,-301.95776077,0.0002262,2]
[424907622,1781265043000,-579.47548544,0.00025998,2]
[424907624,1781265043000,-2449.5553765,0.000261,2]
[424907625,1781265043000,-204.246,0.000261,12]
[424907621,1781265043000,-457.10919756,0.00025997,2]
[424907623,1781265043000,-328.88177247,0.0002601,7]
[424907620,1781265043000,-253.9495542,0.00025997,2]
[424907619,1781265043000,-152.0,0.00025974,7]
[424907618,1781265043000,-152.0,0.00025974,7]
[424907617,1781265043000,-152.0,0.00025922,7]
[424907614,1781265043000,-2449.5553765,0.000258,2]
[424907615,1781265043000,-235.22731082,0.000258,2]
[424907626,1781265043000,-2449.5553765,0.000263,2]
[424907613,1781265043000,-500.0,0.00025799,2]
[424907616,1781265043000,-152.0,0.00025922,7]
[424907603,1781265043000,-151.0,0.00024658,6]
[424907605,1781265043000,-195.89418949,0.00025063,2]
[424907606,1781265043000,-2449.5553765,0.000255,2]
[424907608,1781265043000,-417.15472785,0.00025578,2]
[424907604,1781265043000,-152.0,0.00024984,30]
[424907607,1781265043000,-328.88177247,0.000255,7]
[424907610,1781265043000,-161.55945713,0.00025698,2]
[424907609,1781265043000,-235.22731082,0.000256,2]
[424907611,1781265043000,-176.34954513,0.00025738,7]
[424907627,1781265043000,-600.0,0.00026313,30]
[424907649,1781265044000,-1000.0,0.000279,2]
[424907642,1781265044000,-473.59592226,0.00027431,7]
[424907650,1781265044000,-1000.0,0.000279,2]
[424907646,1781265044000,-1000.0,0.000279,2]
[424907647,1781265044000,-1000.0,0.000279,2]
[424907645,1781265044000,-172.10419606,0.00027798,2]
[424907644,1781265044000,-2449.5553765,0.000277,2]
[424907643,1781265044000,-328.88177247,0.0002754,7]
[424907641,1781265044000,-2449.5553765,0.000274,2]
[424907640,1781265044000,-176.3855273,0.000272,2]
[424907638,1781265044000,-607.35763244,0.00027099,2]
[424907636,1781265044000,-607.35763244,0.00027099,2]
[424907634,1781265044000,-607.35763244,0.00027099,2]
[424907631,1781265044000,-328.88177247,0.00026775,7]
[424907635,1781265044000,-607.35763244,0.00027099,2]
[424907633,1781265044000,-607.35763244,0.00027099,2]
[424907637,1781265044000,-607.35763244,0.00027099,2]
[424907632,1781265044000,-2449.5553765,0.000268,2]
[424907629,1781265044000,-2449.5553765,0.000266,2]
[424907628,1781265044000,-152.0,0.00026535,2]
[424907630,1781265044000,-473.59592226,0.00026669,7]
[424907648,1781265044000,-1000.0,0.000279,2]
[424907639,1781265044000,-2449.5553765,0.000271,2]
[424907652,1781265044000,-1000.0,0.000279,2]
[424907658,1781265044000,-161.55945709,0.00028065,2]
[424907654,1781265044000,-1000.0,0.000279,2]
[424907677,1781265044000,-7888.54289062,0.000348,30]
[424907673,1781265044000,-1269.74777099,0.0003204,2]
[424907676,1781265044000,-1772.23860878,0.00033,2]
[424907675,1781265044000,-161.55945709,0.00032799,2]
[424907674,1781265044000,-2207.0,0.00032551,2]
[424907670,1781265044000,-500.0,0.00031241,2]
[424907671,1781265044000,-548.16834659,0.00031241,2]
[424907672,1781265044000,-864.0,0.00031839,30]
[424907651,1781265044000,-1000.0,0.000279,2]
[424907665,1781265044000,-3625.0,0.00029551,2]
[424907666,1781265044000,-2209.0,0.00029551,2]
[424907668,1781265044000,-161.55945709,0.00030432,2]
[424907669,1781265044000,-500.0,0.00031241,2]
[424907664,1781265044000,-1063.51159852,0.00029551,2]
[424907655,1781265044000,-979.64102164,0.000279,2]
[424907667,1781265044000,-150.55,0.00029551,2]
[424907656,1781265044000,-20.35897836,0.000279,2]
[424907657,1781265044000,-2449.5553765,0.000279,2]
[424907659,1781265044000,-473.59592228,0.00028447,7]
[424907653,1781265044000,-1000.0,0.000279,2]
[424907662,1781265044000,-720.0,0.00028944,30]
[424907661,1781265044000,-812.63857344,0.0002864,2]
[424907663,1781265044000,-774.48840148,0.00029551,2]
[424907660,1781265044000,-328.88177251,0.0002856,7]
[424907685,1781265046000,-300.0,0.00035,2]
[424907678,1781265046000,-12114.20741238,0.000348,30]
[424907680,1781265046000,-300.0,0.00035,30]
[424907682,1781265046000,-5000.0,0.00035,72]
[424907679,1781265046000,-229.22930496,0.00034813,2]
[424907681,1781265046000,-5000.0,0.00035,15]
[424907683,1781265046000,-8344.17325433,0.00035,2]
[424907686,1781265046000,-1000.0,0.00035023,30]
[424907687,1781265046000,-300.0,0.00035068,37]
[424907691,1781265046000,-1632.02866415,0.0003543,30]
[424907684,1781265046000,-30999.97,0.00035,5]
[424907690,1781265046000,-300.0,0.00035295,38]
[424907689,1781265046000,-161.55945709,0.00035166,2]
[424907695,1781265046000,-1106.02735673,0.0003543,30]
[424907699,1781265046000,-225.166866,0.00035441,21]
[424907697,1781265046000,-525.01614457,0.0003543,30]
[424907694,1781265046000,-399.12043455,0.0003543,30]
[424907700,1781265046000,-169.399361,0.00035441,21]
[424907688,1781265046000,-160.0,0.00035127,3]
[424907703,1781265047000,-248.53324,0.00035441,21]
[424907705,1781265047000,-100.97570146,0.00035441,21]
[424907704,1781265047000,-248.533241,0.00035441,21]
[424907701,1781265047000,-169.399361,0.00035441,21]
[424907706,1781265052000,152.0,0.00023349,30]
[424907720,1781265450000,3265.65650822,7.6e-05,2]
[424907735,1781266063000,152.0,0.00023421,30]
[424907917,1781266188000,171.68550647,0.000101,9]
[424907925,1781266196000,301.30024172,0.000101,9]
[424907926,1781266204000,5000.0,0.000101,9]
[424907951,1781266232000,-428.8375776,9.508e-05,2]
[424908462,1781266242000,-6213.63021434,0.00012,2]
[424908461,1781266242000,-720.0,0.00011442,2]
[424908464,1781266242000,-864.0,0.00012586,2]
[424908465,1781266242000,-1000.0,0.00013845,2]
[424908468,1781266242000,-1000.0,0.00016752,2]
[424908467,1781266242000,-244.0,0.0001523,2]
[424908466,1781266242000,-1000.0,0.0001523,2]
[424908472,1781266242000,-1101.7301445,0.00019199,2]
[424908469,1781266242000,-492.0,0.00016752,2]
[424908471,1781266242000,-791.0,0.00018428,2]
[424908474,1781266242000,-199.844,0.00019691,2]
[424908475,1781266242000,-163.84964978,0.00019897,2]
[424908473,1781266242000,-202.98662038,0.00019219,2]
[424908478,1781266242000,-300.0,0.00020269,2]
[424908477,1781266242000,-391724.57324209,0.0002,2]
[424908479,1781266242000,-1000.0,0.0002027,2]
[424908476,1781266242000,-500.0,0.00019998,2]
[424908481,1781266242000,-900.0,0.0002189,2]
[424908480,1781266242000,-1000.0,0.0002027,2]
[424908483,1781266242000,-1000.0,0.00022298,10]
[424908463,1781266242000,-254.61393159,0.00012212,2]
[424908484,1781266242000,-579.0,0.00022298,10]
[424908486,1781266242000,-152.8497719,0.0002272,2]
[424908496,1781266242000,-191.06221488,0.00025189,7]
[424908485,1781266242000,-152.8497719,0.0002262,2]
[424908482,1781266242000,-1000.0,0.00022298,10]
[424908470,1781266242000,-1000.0,0.00018428,2]
[424908454,1781266242000,-300.0,0.00010199,2]
[424908459,1781266242000,-600.0,0.00010402,2]
[424908487,1781266242000,-152.8497719,0.0002282,2]
[424908434,1781266242000,-4571.1624224,9.508e-05,2]
[424908435,1781266242000,-300.0,9.604e-05,2]
[424908438,1781266242000,-500.0,0.0001,2]
[424908444,1781266242000,-300.0,0.00010199,2]
[424908439,1781266242000,-500.0,0.0001,2]
[424908441,1781266242000,-500.0,0.0001,2]
[424908442,1781266242000,-500.0,0.0001,2]
[424908445,1781266242000,-300.0,0.00010199,2]
[424908440,1781266242000,-500.0,0.0001,2]
[424908436,1781266242000,-29405.3822473,9.606e-05,2]
[424908443,1781266242000,-2588.7186895,0.0001,2]
[424908437,1781266242000,-1000.0,0.0001,2]
[424908451,1781266242000,-300.0,0.00010199,2]
[424908450,1781266242000,-300.0,0.00010199,2]
[424908447,1781266242000,-300.0,0.00010199,2]
[424908452,1781266242000,-300.0,0.00010199,2]
[424908455,1781266242000,-300.0,0.00010199,2]
[424908457,1781266242000,-300.0,0.00010199,2]
[424908446,1781266242000,-300.0,0.00010199,2]
[424908453,1781266242000,-300.0,0.00010199,2]
[424908458,1781266242000,-300.0,0.00010199,2]
[424908449,1781266242000,-300.0,0.00010199,2]
[424908448,1781266242000,-300.0,0.00010199,2]
[424908456,1781266242000,-300.0,0.00010199,2]
[424908460,1781266242000,-227.499838,0.00010745,2]
[424908488,1781266242000,-152.8497719,0.0002292,2]
[424908535,1781266242000,-800.0,0.00034857,30]
[424908489,1781266242000,-1000.0,0.00024527,10]
[424908513,1781266242000,-1267.24779002,0.000274,2]
[424908516,1781266242000,-1267.24779002,0.00028,2]
[424908517,1781266242000,-152.0,0.00028076,7]
[424908525,1781266242000,-1573.26,0.00033425,30]
[424908526,1781266242000,-444.0,0.00033468,2]
[424908530,1781266242000,-800.0,0.00034713,30]
[424908527,1781266242000,-186.0,0.00033468,2]
[424908529,1781266242000,-800.0,0.00034591,30]
[424908528,1781266242000,-209.16511902,0.0003419,2]
[424908531,1781266242000,-800.0,0.00034736,30]
[424908532,1781266242000,-1003.0,0.000348,25]
[424908536,1781266242000,-54768.38793011,0.00035,2]
[424908533,1781266242000,-152.81953664,0.00034813,2]
[424908534,1781266242000,-800.0,0.00034835,30]
[424908545,1781266242000,-388.39235313,0.00035616,18]
[424908539,1781266242000,-173.82933,0.00035172,21]
[424908538,1781266242000,-173.829329,0.00035172,120]
[424908540,1781266242000,-800.0,0.00035294,30]
[424908543,1781266242000,-1063.0058,0.00035616,18]
[424908542,1781266242000,-270.20024,0.00035441,21]
[424908541,1781266242000,-800.0,0.00035319,30]
[424908547,1781266242000,-992.96,0.00035616,18]
[424908544,1781266242000,-500.0,0.00035616,18]
[424908546,1781266242000,-562.69,0.00035616,18]
[424908491,1781266242000,-422.0,0.00024527,10]
[424908523,1781266242000,-213.10028093,0.00032286,2]
[424908524,1781266242000,-1571.0,0.00032877,30]
[424908537,1781266242000,-800.0,0.00035071,30]
[424908512,1781266242000,-1267.24779002,0.000272,2]
[424908490,1781266242000,-1000.0,0.00024527,10]
[424908520,1781266242000,-444.0,0.00030468,2]
[424908492,1781266242000,-155.72737323,0.00024893,6]
[424908493,1781266242000,-186.95345849,0.00024893,6]
[424908494,1781266242000,-151.0,0.00025054,6]
[424908495,1781266242000,-152.8497719,0.00025189,7]
[424908497,1781266242000,-3000.0,0.000254,2]
[424908499,1781266242000,-168.92,0.0002541,2]
[424908498,1781266242000,-3000.0,0.0002541,2]
[424908503,1781266242000,-1267.24779002,0.000256,2]
[424908506,1781266242000,-38094.404896,0.00026,30]
[424908504,1781266242000,-1267.24779002,0.000259,2]
[424908502,1781266242000,-3887.036323,0.0002544,2]
[424908500,1781266242000,-3000.0,0.0002542,2]
[424908505,1781266242000,-20415.94301906,0.00025998,2]
[424908522,1781266242000,-284.75080759,0.00031519,2]
[424908518,1781266242000,-696.77039448,0.00029022,2]
[424908510,1781266242000,-186.46274581,0.0002668,2]
[424908521,1781266242000,-186.0,0.00030468,2]
[424908519,1781266242000,-1416.0,0.00030468,2]
[424908514,1781266242000,-1267.24779002,0.000277,2]
[424908509,1781266242000,-1267.24779002,0.000266,2]
[424908507,1781266242000,-1267.24779002,0.000261,2]
[424908508,1781266242000,-1267.24779002,0.000264,2]
[424908501,1781266242000,-3000.0,0.0002543,2]
[424908511,1781266242000,-1267.24779002,0.000269,2]
[424908622,1781266243000,-503.96091403,0.00035616,18]
[424908623,1781266243000,-280.57719357,0.00035616,18]
[424908616,1781266243000,-500.0,0.00035616,18]
[424908615,1781266243000,-500.0,0.00035616,18]
[424908614,1781266243000,-503.56600488,0.00035616,18]
[424908603,1781266243000,-502.06290256,0.00035616,18]
[424908610,1781266243000,-840.3,0.00035616,18]
[424908606,1781266243000,-1056.6,0.00035616,18]
[424908608,1781266243000,-502.77373839,0.00035616,18]
[424908604,1781266243000,-1015.91,0.00035616,18]
[424908620,1781266243000,-500.0,0.00035616,18]
[424908612,1781266243000,-641.43,0.00035616,18]
[424908624,1781266243000,-500.0,0.00035616,18]
[424908635,1781266243000,-500.0,0.00035616,18]
[424908628,1781266243000,-500.0,0.00035616,18]
[424908617,1781266243000,-500.0,0.00035616,18]
[424908626,1781266243000,-482.21581661,0.00035616,18]
[424908619,1781266243000,-502.70879425,0.00035616,18]
[424908625,1781266243000,-500.0,0.00035616,18]
[424908627,1781266243000,-503.25178811,0.00035616,18]
[424908618,1781266243000,-1860.12,0.00035616,18]
[424908630,1781266243000,-501.75058017,0.00035616,18]
[424908631,1781266243000,-500.0,0.00035616,18]
[424908629,1781266243000,-651.99,0.00035616,18]
[424908641,1781266243000,-500.0,0.00035616,18]
[424908637,1781266243000,-697.14,0.00035616,18]
[424908599,1781266243000,-503.54294717,0.00035616,18]
[424908621,1781266243000,-500.0,0.00035616,18]
[424908601,1781266243000,-1171.32,0.00035616,18]
[424908554,1781266243000,-315.55017975,0.00035616,18]
[424908595,1781266243000,-1450.54,0.00035616,18]
[424908548,1781266243000,-400.06627072,0.00035616,18]
[424908550,1781266243000,-500.0,0.00035616,18]
[424908552,1781266243000,-374.78068388,0.00035616,18]
[424908633,1781266243000,-501.50385187,0.00035616,18]
[424908565,1781266243000,-500.0,0.00035616,18]
[424908564,1781266243000,-937.1,0.00035616,18]
[424908568,1781266243000,-744.88,0.00035616,18]
[424908569,1781266243000,-500.0,0.00035616,18]
[424908566,1781266243000,-500.0,0.00035616,18]
[424908557,1781266243000,-955.89,0.00035616,18]
[424908561,1781266243000,-500.0,0.00035616,18]
[424908560,1781266243000,-272.28279941,0.00035616,18]
[424908571,1781266243000,-658.6,0.00035616,18]
[424908562,1781266243000,-500.0,0.00035616,18]
[424908559,1781266243000,-500.0,0.00035616,18]
[424908556,1781266243000,-500.0,0.00035616,18]
[424908563,1781266243000,-500.0,0.00035616,18]
[424908558,1781266243000,-923.02,0.00035616,18]
[424908573,1781266243000,-500.0,0.00035616,18]
[424908584,1781266243000,-896.03,0.00035616,18]
[424908582,1781266243000,-502.8294153,0.00035616,18]
[424908586,1781266243000,-915.53,0.00035616,18]
[424908588,1781266243000,-502.64804544,0.00035616,18]
[424908590,1781266243000,-500.0,0.00035616,18]
[424908576,1781266243000,-501.7959736,0.00035616,18]
[424908578,1781266243000,-892.45,0.00035616,18]
[424908592,1781266243000,-500.0,0.00035616,18]
[424908574,1781266243000,-539.45,0.00035616,18]
[424908594,1781266243000,-500.0,0.00035616,18]
[424908597,1781266243000,-502.11146584,0.00035616,18]
[424908643,1781266243000,-501.98860124,0.00035616,18]
[424908632,1781266243000,-2142.79,0.00035616,18]
[424908639,1781266243000,-500.0,0.00035616,18]
[424908699,1781266243000,-501.35460461,0.00035616,18]
[424908710,1781266243000,-500.0,0.00035616,18]
[424908706,1781266243000,-780.68,0.00035616,18]
[424908712,1781266243000,-500.0,0.00035616,18]
[424908716,1781266243000,-500.0,0.00035616,18]
[424908708,1781266243000,-500.0,0.00035616,18]
[424908718,1781266243000,-1054.64,0.00035616,18]
[424908720,1781266243000,-500.0,0.00035616,18]
[424908722,1781266243000,-500.0,0.00035616,18]
[424908724,1781266243000,-500.0,0.00035616,18]
[424908726,1781266243000,-562.49,0.00035616,18]
[424908729,1781266243000,-500.0,0.00035616,18]
[424908727,1781266243000,-1479.28,0.00035616,18]
[424908705,1781266243000,-502.58934023,0.00035616,18]
[424908735,1781266243000,-6411.14,0.00035616,18]
[424908733,1781266243000,-500.0,0.00035616,18]
[424908742,1781266243000,-4224.06,0.00035616,18]
[424908731,1781266243000,-509.4,0.00035616,18]
[424908741,1781266243000,-1230.43,0.00035616,18]
[424908746,1781266243000,-500.0,0.00035616,18]
[424908752,1781266243000,-500.0,0.00035616,18]
[424908754,1781266243000,-500.0,0.00035616,18]
[424908756,1781266243000,-500.0,0.00035616,18]
[424908750,1781266243000,-500.0,0.00035616,2]
[424908757,1781266243000,-1958.21,0.00035616,18]
[424908744,1781266243000,-788.7,0.00035616,18]
[424908748,1781266243000,-2380.49,0.00035616,18]
[424908634,1781266243000,-503.5609052,0.00035616,18]
[424908737,1781266243000,-1272.48,0.00035616,18]
[424908695,1781266243000,-500.0,0.00035616,18]
[424908739,1781266243000,-500.0,0.00035616,18]
[424908703,1781266243000,-4138.37,0.00035616,18]
[424908714,1781266243000,-500.0,0.00035616,18]
[424908657,1781266243000,-504.28721303,0.00035616,18]
[424908659,1781266243000,-500.0,0.00035616,18]
[424908661,1781266243000,-500.0,0.00035616,18]
[424908646,1781266243000,-500.0,0.00035616,6]
[424908663,1781266243000,-1114.85,0.00035616,18]
[424908652,1781266243000,-695.2,0.00035616,18]
[424908648,1781266243000,-504.14248833,0.00035616,18]
[424908651,1781266243000,-503.59875924,0.00035616,18]
[424908666,1781266243000,-503.19018249,0.00035616,18]
[424908650,1781266243000,-678.81,0.00035616,18]
[424908655,1781266243000,-502.58551985,0.00035616,18]
[424908667,1781266243000,-500.0,0.00035616,18]
[424908653,1781266243000,-500.0,0.00035616,18]
[424908669,1781266243000,-501.44769287,0.00035616,18]
[424908645,1781266243000,-500.0,0.00035616,18]
[424908697,1781266243000,-502.87649227,0.00035616,18]
[424908701,1781266243000,-502.42204841,0.00035616,18]
[424908693,1781266243000,-500.0,0.00035616,18]
[424908691,1781266243000,-500.0,0.00035616,18]
[424908673,1781266243000,-503.69363753,0.00035616,14]
[424908677,1781266243000,-500.0,0.00035616,18]
[424908681,1781266243000,-500.0,0.00035616,18]
[424908687,1781266243000,-501.06945384,0.00035616,18]
[424908689,1781266243000,-500.0,0.00035616,18]
[424908683,1781266243000,-840.12,0.00035616,18]
[424908679,1781266243000,-501.37215777,0.00035616,18]
[424908671,1781266243000,-322.938929,0.00035616,18]
[424908675,1781266243000,-501.71370677,0.00035616,18]
[424908685,1781266243000,-488.87379775,0.00035616,18]
[424908831,1781266244000,-500.0,0.00035616,18]
[424908827,1781266244000,-504.69,0.00035616,18]
[424908837,1781266244000,-828.5,0.00035616,18]
[424908829,1781266244000,-500.0,0.00035616,18]
[424908833,1781266244000,-943.29,0.00035616,18]
[424908819,1781266244000,-500.0,0.00035616,18]
[424908839,1781266244000,-1521.07,0.00035616,18]
[424908818,1781266244000,-5521.08,0.00035616,18]
[424908823,1781266244000,-5220.58,0.00035616,18]
[424908825,1781266244000,-500.0,0.00035616,18]
[424908821,1781266244000,-500.0,0.00035616,18]
[424908843,1781266244000,-2588.86,0.00035616,18]
[424908835,1781266244000,-1161.74,0.00035616,18]
[424908841,1781266244000,-500.0,0.00035616,18]
[424908857,1781266244000,-332.63621976,0.00035826,2]
[424908871,1781266244000,-955.89,0.0003589,18]
[424908851,1781266244000,-500.0,0.00035616,18]
[424908847,1781266244000,-632.42,0.00035616,18]
[424908875,1781266244000,-500.0,0.0003589,18]
[424908884,1781266244000,-937.1,0.0003589,18]
[424908854,1781266244000,-777.56,0.00035616,18]
[424908859,1781266244000,-1063.0058,0.0003589,18]
[424908867,1781266244000,-500.0,0.0003589,18]
[424908869,1781266244000,-500.0,0.0003589,18]
[424908852,1781266244000,-964.44,0.00035616,18]
[424908861,1781266244000,-500.0,0.0003589,18]
[424908879,1781266244000,-500.0,0.0003589,18]
[424908881,1781266244000,-500.0,0.0003589,18]
[424908849,1781266244000,-3161.22,0.00035616,18]
[424908812,1781266244000,-543.39,0.00035616,18]
[424908889,1781266244000,-744.88,0.0003589,18]
[424908816,1781266244000,-1318.78,0.00035616,18]
[424908759,1781266244000,-970.21,0.00035616,18]
[424908766,1781266244000,-1705.13,0.00035616,18]
[424908768,1781266244000,-3298.21,0.00035616,18]
[424908763,1781266244000,-500.0,0.00035616,2]
[424908764,1781266244000,-500.0,0.00035616,18]
[424908761,1781266244000,-1887.62,0.00035616,18]
[424908769,1781266244000,-774.2,0.00035616,2]
[424908773,1781266244000,-2295.64,0.00035616,18]
[424908771,1781266244000,-500.0,0.00035616,18]
[424908779,1781266244000,-662.99,0.00035616,18]
[424908777,1781266244000,-500.0,0.00035616,18]
[424908775,1781266244000,-500.0,0.00035616,18]
[424908776,1781266244000,-529.94,0.00035616,18]
[424908789,1781266244000,-500.0,0.00035616,18]
[424908783,1781266244000,-500.0,0.00035616,18]
[424908786,1781266244000,-3161.81,0.00035616,18]
[424908781,1781266244000,-1605.38,0.00035616,18]
[424908788,1781266244000,-502.96369722,0.00035616,18]
[424908791,1781266244000,-2534.24,0.00035616,11]
[424908793,1781266244000,-509.69,0.00035616,18]
[424908800,1781266244000,-500.0,0.00035616,18]
[424908802,1781266244000,-2121.83,0.00035616,18]
[424908808,1781266244000,-500.0,0.00035616,18]
[424908804,1781266244000,-567.44,0.00035616,18]
[424908806,1781266244000,-5075.65,0.00035616,18]
[424908797,1781266244000,-2172.99,0.00035616,18]
[424908799,1781266244000,-500.0,0.00035616,18]
[424908814,1781266244000,-4346.66,0.00035616,18]
[424908795,1781266244000,-743.94,0.00035616,18]
[424908810,1781266244000,-1142.67,0.00035616,18]